bitfinex/quotes_SOLUSD_20220302
["timestamp","ask_amount","ask_price","bid_price","bid_amount"]
[1646211421116,22.5522,103.32,103.22,163.79940555]
[1646211421316,22.5522,103.32,103.22,166.34844558]
[1646211422216,6.0,103.31,103.22,166.34844558]
[1646211422419,6.0,103.32,103.22,166.34844558]
[1646211422619,6.0,103.32,103.22,170.22144558]
[1646211422817,48.449,103.34,103.22,170.22144558]
[1646211423017,20.5273,103.33,103.22,184.75184558]
[1646211423219,5.0,103.35,103.22,242.20184558]
[1646211423418,3.872,103.34,103.22,242.20184558]
[1646211423618,3.872,103.35,103.22,242.20184558]
[1646211423818,3.872,103.35,103.24,153.21]
[1646211424021,5.0,103.36,103.26,153.21]
[1646211424220,5.0,103.36,103.28,153.21]
[1646211424418,5.0,103.36,103.3,95.76]
[1646211424623,5.0,103.36,103.32,95.76]
[1646211424819,3.871,103.41,103.34,95.76]
[1646211425019,3.871,103.41,103.35,47.87899204]
[1646211425220,3.871,103.41,103.35,143.63899204]
[1646211425624,24.1218,103.42,103.35,47.87899204]
[1646211426327,19.514,103.43,103.35,143.63899204]
[1646211426521,3.868,103.44,103.35,143.88899204]
[1646211427321,18.3799,103.44,103.35,158.40109204]
[1646211427726,18.3799,103.44,103.35,62.64109204]
[1646211428323,18.3799,103.44,103.35,158.40109204]
[1646211428523,26.84686089,103.45,103.35,158.40109204]
[1646211428927,26.84686089,103.45,103.35,62.64109204]
[1646211429124,122.60686089,103.45,103.35,62.64109204]
[1646211429326,3.868,103.44,103.35,62.39109204]
[1646211429526,32.30892403,103.45,103.35,62.39109204]
[1646211429829,6.0,103.43,103.35,62.39109204]
[1646211430025,20.5131,103.43,103.33,14.5141]
[1646211430226,42.35996089,103.43,103.33,14.5141]
[1646211430425,2.3728467,103.42,103.33,14.5141]
[1646211430626,6.0,103.41,103.33,14.5141]
[1646211430826,6.25,103.41,103.33,14.5141]
[1646211431028,20.7661,103.41,103.33,14.5141]
[1646211431224,23.1389467,103.41,103.31,95.76]
[1646211431425,48.85480759,103.41,103.31,95.76]
[1646211432028,59.25916504,103.41,103.29,55.01672019]
[1646211432226,5.0,103.38,103.29,55.01672019]
[1646211432429,14.5232,103.36,103.29,55.01672019]
[1646211432627,0.25,103.36,103.29,55.01672019]
[1646211433027,0.25,103.36,103.29,150.77672019]
[1646211433230,0.25,103.36,103.29,55.01672019]
[1646211433632,13.637,103.37,103.29,55.01672019]
[1646211434228,28.1587,103.37,103.29,69.53702019]
[1646211434430,20.7717,103.37,103.29,165.54702019]
[1646211434830,6.25,103.37,103.29,165.54702019]
[1646211435033,0.25,103.37,103.29,165.54702019]
[1646211435230,6.25,103.38,103.29,165.54702019]
[1646211436029,20.7702,103.38,103.29,165.54702019]
[1646211436431,50.8896,103.4,103.29,165.54702019]
[1646211436629,50.8896,103.4,103.31,95.76]
[1646211436630,47.0196,103.4,103.31,95.76]
[1646211436829,47.0196,103.4,103.33,110.2742]
[1646211437029,5.0,103.42,103.34,150.214836]
[1646211437231,5.0,103.42,103.34,150.464836]
[1646211437430,5.0,103.42,103.34,150.214836]
[1646211437634,3.869,103.41,103.34,150.214836]
[1646211437832,4.119,103.41,103.34,54.454836]
[1646211438231,6.0,103.4,103.34,54.454836]
[1646211438431,14.7674,103.4,103.34,54.454836]
[1646211438631,6.0,103.39,103.34,54.454836]
[1646211438831,6.25,103.39,103.32,14.5154]
[1646211439332,6.25,103.39,103.3,14.5181]
[1646211439531,0.25,103.39,103.3,110.2781]
[1646211439732,6.0,103.38,103.31,47.62795083]
[1646211440032,14.7707,103.38,103.29,23.4887]
[1646211440241,6.0,103.37,103.28,22.9283]
[1646211440433,6.25,103.37,103.28,14.5213]
[1646211440635,8.6228467,103.37,103.29,95.76]
[1646211440932,8.6228467,103.37,103.3,58.12580254]
[1646211442134,23.1450467,103.37,103.3,153.88580254]
[1646211442334,8.6228467,103.37,103.3,153.88580254]
[1646211442537,6.25,103.37,103.3,153.88580254]
[1646211442737,0.25,103.37,103.3,58.12580254]
[1646211442934,6.25,103.38,103.3,58.12580254]
[1646211443134,20.7709,103.38,103.3,58.12580254]
[1646211443736,25.7709,103.38,103.3,58.12580254]
[1646211444034,25.7709,103.38,103.3,153.88580254]
[1646211444240,6.0,103.38,103.3,154.13580254]
[1646211444539,24.6545,103.39,103.3,154.13580254]
[1646211445736,24.6545,103.39,103.3,165.67580254]
[1646211446138,24.6545,103.39,103.3,180.19480254]
[1646211446943,6.0,103.38,103.3,180.19480254]
[1646211447143,6.25,103.38,103.3,180.19480254]
[1646211447545,6.25,103.38,103.3,84.43480254]
[1646211447743,6.25,103.38,103.3,180.19480254]
[1646211448544,0.25,103.38,103.3,180.19480254]
[1646211448744,24.9045,103.39,103.3,180.19480254]
[1646211449345,24.9045,103.39,103.3,187.01180254]
[1646211449545,0.25,103.39,103.3,189.56084257]
[1646211449746,6.0,103.4,103.3,189.56084257]
[1646211449946,6.25,103.4,103.3,247.01084257]
[1646211450147,0.25,103.4,103.3,247.01084257]
[1646211450950,0.25,103.4,103.33,46.10616303]
[1646211451148,47.7178,103.42,103.35,51.05199026]
[1646211451347,47.7178,103.42,103.35,146.81199026]
[1646211451548,47.4678,103.42,103.35,146.81199026]
[1646211451748,47.4678,103.42,103.35,147.06199026]
[1646211452150,47.4678,103.42,103.35,161.57389026]
[1646211452748,47.7178,103.42,103.35,161.57389026]
[1646211452950,0.25,103.42,103.35,161.57389026]
[1646211453154,4.12,103.44,103.35,161.57389026]
[1646211453550,22.19352755,103.45,103.35,161.57389026]
[1646211453752,6.0,103.44,103.35,175.66293029]
[1646211453952,72.69913117,103.46,103.35,175.66293029]
[1646211453953,6.0,103.45,103.35,175.66293029]
[1646211454353,3.868,103.46,103.35,239.23293029]
[1646211454572,5.0,103.48,103.41,95.76]
[1646211454773,3.868,103.49,103.41,50.42481411]
[1646211454973,6.0,103.48,103.41,50.42481411]
[1646211455173,6.0,103.48,103.39,11.54]
[1646211455373,6.0,103.48,103.39,0.25]
[1646211455573,43.58161924,103.47,103.39,0.25]
[1646211456073,6.0,103.46,103.39,0.25]
[1646211456273,6.25,103.46,103.38,53.93186136]
[1646211456474,6.25,103.46,103.38,54.18186136]
[1646211456674,0.25,103.46,103.38,54.18186136]
[1646211456873,0.25,103.46,103.38,149.94186136]
[1646211457073,0.25,103.46,103.38,68.68896136]
[1646211457573,2.3728467,103.46,103.38,53.93186136]
[1646211457774,6.0,103.45,103.38,53.93186136]
[1646211457977,6.25,103.45,103.38,53.93186136]
[1646211458376,6.25,103.45,103.36,121.8096]
[1646211458575,30.01093839,103.45,103.36,26.0496]
[1646211458777,31.57323794,103.45,103.33,49.1058]
[1646211458976,23.74256263,103.44,103.34,95.76]
[1646211459175,6.0,103.43,103.34,95.76]
[1646211459375,6.25,103.43,103.35,55.85351571]
[1646211459580,6.25,103.43,103.34,95.76]
[1646211459775,136.0375467,103.43,103.34,95.76]
[1646211460577,136.0375467,103.43,103.35,45.2658057]
[1646211460880,119.15,103.43,103.35,45.2658057]
[1646211461277,119.15,103.43,103.35,141.0258057]
[1646211461477,113.15,103.43,103.35,141.0258057]
[1646211461676,113.15,103.43,103.35,155.7876057]
[1646211462081,0.25,103.43,103.35,167.3276057]
[1646211462280,23.632,103.46,103.35,230.3526057]
[1646211462480,6.0,103.45,103.37,60.50439251]
[1646211462680,6.0,103.45,103.39,142.85989925]
[1646211463082,6.0,103.45,103.39,47.09989925]
[1646211463483,23.632,103.46,103.39,47.09989925]
[1646211463681,23.882,103.46,103.39,47.09989925]
[1646211464082,6.2398467,103.47,103.39,47.09989925]
[1646211464083,3.867,103.47,103.41,140.77091425]
[1646211464283,3.866,103.48,103.41,140.77091425]
[1646211464485,3.866,103.48,103.41,45.01091425]
[1646211465285,143.0336467,103.49,103.41,140.77091425]
[1646211465488,6.0,103.48,103.41,140.77091425]
[1646211465688,6.25,103.48,103.41,140.77091425]
[1646211465992,6.25,103.48,103.41,155.27461425]
[1646211466387,6.0,103.48,103.41,155.27461425]
[1646211466588,6.0,103.48,103.41,155.52461425]
[1646211466789,3.866,103.51,103.45,95.76]
[1646211466988,3.865,103.54,103.46,154.75958822]
[1646211467189,1.33304812,103.56,103.46,155.00958822]
[1646211467190,5.19704812,103.56,103.46,155.00958822]
[1646211467391,117.9,103.55,103.46,155.00958822]
[1646211467591,5.0,103.55,103.46,81.55808822]
[1646211467791,5.0,103.55,103.46,93.09808822]
[1646211468392,3.864,103.56,103.48,51.20818676]
[1646211468602,6.0,103.55,103.47,11.54]
[1646211468793,3.864,103.54,103.43,5.0]
[1646211468995,3.864,103.54,103.44,11.54]
[1646211469197,8.3728467,103.53,103.43,5.0]
[1646211469393,3.865,103.52,103.43,96.01]
[1646211469595,3.865,103.52,103.43,46.75206148]
[1646211469996,0.25,103.52,103.43,61.50206148]
[1646211470198,70.7012467,103.53,103.43,61.50206148]
[1646211471697,70.7012467,103.53,103.43,157.26206148]
[1646211475501,70.7012467,103.53,103.43,157.01206148]
[1646211475702,70.7012467,103.53,103.43,61.25206148]
[1646211475905,92.08933839,103.53,103.43,61.25206148]
[1646211476102,2.3728467,103.52,103.41,75.2854]
[1646211476305,9.866,103.51,103.41,75.2854]
[1646211476602,14.504,103.5,103.41,159.5054]
[1646211476802,14.754,103.5,103.41,159.5054]
[1646211477004,6.0,103.49,103.42,50.10176021]
[1646211477202,6.0,103.49,103.39,33.59454003]
[1646211477203,6.25,103.49,103.39,33.59454003]
[1646211477405,6.25,103.49,103.39,14.5055]
[1646211477607,6.0,103.48,103.39,14.5055]
[1646211477803,6.25,103.48,103.39,14.5055]
[1646211478003,0.25,103.48,103.39,110.2655]
[1646211478205,6.25,103.48,103.4,52.67598903]
[1646211479105,6.25,103.48,103.4,163.19088903]
[1646211479305,6.25,103.48,103.4,67.18088903]
[1646211480104,20.7569,103.48,103.4,52.67598903]
[1646211481607,6.25,103.48,103.4,67.18108903]
[1646211482107,48.3593,103.49,103.41,95.76]
[1646211482405,48.3593,103.49,103.44,53.49269161]
[1646211482606,29.30227422,103.51,103.44,53.49269161]
[1646211482806,6.0,103.5,103.44,53.49269161]
[1646211483204,6.0,103.5,103.44,149.25269161]
[1646211483404,6.0,103.5,103.44,53.49269161]
[1646211483605,59.16171924,103.5,103.4,5.25]
[1646211483806,59.16171924,103.5,103.4,5.0]
[1646211484011,61.53456594,103.5,103.4,5.0]
[1646211484207,63.36233851,103.5,103.39,46.6562]
[1646211484407,87.52733851,103.5,103.39,46.9062]
[1646211484608,117.13516839,103.5,103.4,60.19057566]
[1646211485008,136.63856839,103.5,103.4,60.19057566]
[1646211485709,131.63856839,103.5,103.4,60.19057566]
[1646211485914,3.866,103.49,103.4,60.19057566]
[1646211486111,6.0,103.48,103.4,60.19057566]
[1646211486408,65.92033257,103.48,103.4,60.19057566]
[1646211487009,80.42643257,103.48,103.4,155.95057566]
[1646211487212,35.55114755,103.48,103.4,156.20057566]
[1646211487409,0.25,103.48,103.4,156.20057566]
[1646211487611,6.0,103.49,103.4,156.20057566]
[1646211487810,6.25,103.49,103.4,156.20057566]
[1646211488010,6.25,103.49,103.4,60.44057566]
[1646211488211,50.05584755,103.49,103.4,60.19057566]
[1646211488434,31.82430333,103.48,103.4,60.19057566]
[1646211488633,6.0,103.47,103.4,60.19057566]
[1646211488836,6.25,103.47,103.4,60.19057566]
[1646211489137,0.25,103.47,103.41,95.76]
[1646211489334,0.25,103.47,103.42,54.46573516]
[1646211490034,6.0,103.49,103.42,54.46573516]
[1646211490237,6.0,103.49,103.42,54.71573516]
[1646211491737,0.25,103.49,103.42,54.71573516]
[1646211491934,6.0,103.49,103.42,54.71573516]
[1646211492135,6.25,103.49,103.42,54.71573516]
[1646211492535,6.25,103.49,103.42,150.47573516]
[1646211492736,6.25,103.49,103.42,150.22573516]
[1646211493135,6.25,103.49,103.42,164.72733516]
[1646211493534,0.25,103.49,103.42,164.72733516]
[1646211493736,24.415,103.5,103.42,164.72733516]
[1646211494240,0.25,103.5,103.42,164.97733516]
[1646211494437,6.0,103.51,103.42,164.97733516]
[1646211494637,6.25,103.51,103.42,164.97733516]
[1646211494839,6.25,103.51,103.42,69.21733516]
[1646211495038,31.95527902,103.51,103.42,54.71573516]
[1646211495441,60.30797191,103.51,103.42,54.71573516]
[1646211495638,60.30797191,103.51,103.42,54.46573516]
[1646211496038,74.80987191,103.51,103.42,54.46573516]
[1646211496238,70.94387191,103.51,103.42,54.46573516]
[1646211497640,70.94387191,103.51,103.43,95.76]
[1646211497842,70.94387191,103.51,103.44,43.21908707]
[1646211498840,20.7519,103.51,103.44,43.21908707]
[1646211499844,46.45717902,103.51,103.44,43.21908707]
[1646211500049,47.79022714,103.51,103.44,43.21908707]
[1646211500641,47.79022714,103.51,103.41,14.5031]
[1646211500844,112.9,103.5,103.39,61.5979]
[1646211501041,14.5064,103.48,103.39,14.505]
[1646211501240,14.7564,103.48,103.39,14.505]
[1646211501442,6.0,103.47,103.39,14.505]
[1646211501642,6.25,103.47,103.4,46.19158991]
[1646211502047,20.7574,103.47,103.4,46.19158991]
[1646211503043,6.25,103.47,103.4,141.95158991]
[1646211503242,0.25,103.47,103.36,46.7644]
[1646211503447,35.18986572,103.47,103.36,58.3044]
[1646211503646,6.0,103.46,103.36,46.7644]
[1646211503846,6.25,103.46,103.36,46.7644]
[1646211504046,2.3728467,103.45,103.34,98.30904003]
[1646211504247,20.5114,103.44,103.36,53.73462738]
[1646211504445,20.7614,103.44,103.36,53.73462738]
[1646211504648,28.5274,103.44,103.36,53.73462738]
[1646211505045,28.5274,103.44,103.33,73.3031]
[1646211505246,125.28823851,103.44,103.33,47.25]
[1646211505446,25.70501902,103.43,103.32,5.0]
[1646211505647,6.0,103.42,103.31,77.5609]
[1646211505847,14.5175,103.4,103.31,77.5609]
[1646211506047,6.0,103.39,103.32,149.61443044]
[1646211506252,6.25,103.39,103.32,53.85443044]
[1646211507348,20.7687,103.39,103.32,53.85443044]
[1646211509346,20.5187,103.39,103.32,53.85443044]
[1646211509548,6.0,103.39,103.32,149.86443044]
[1646211509851,6.0,103.4,103.32,53.85443044]
[1646211510647,6.25,103.4,103.32,53.85443044]
[1646211511648,8.62272523,103.4,103.32,53.85443044]
[1646211512047,23.14002523,103.4,103.32,53.85443044]
[1646211513048,6.0,103.4,103.32,53.85443044]
[1646211513448,6.0,103.41,103.32,53.85443044]
[1646211514249,62.43343714,103.41,103.32,53.85443044]
[1646211514450,62.68343714,103.41,103.32,53.85443044]
[1646211515059,77.19933714,103.41,103.32,53.85443044]
[1646211516356,179.71993349,103.41,103.32,53.85443044]
[1646211516556,191.25993349,103.41,103.32,53.85443044]
[1646211517160,95.49993349,103.41,103.32,53.85443044]
[1646211518057,90.49993349,103.41,103.32,53.85443044]
[1646211519757,95.49993349,103.41,103.32,53.85443044]
[1646211520162,91.63093349,103.41,103.32,53.85443044]
[1646211520359,86.63093349,103.41,103.32,53.85443044]
[1646211520562,84.87033714,103.41,103.32,53.85443044]
[1646211520763,59.16531812,103.41,103.32,149.61443044]
[1646211521164,59.16531812,103.41,103.32,53.85443044]
[1646211521765,84.86973047,103.41,103.32,53.85443044]
[1646211521966,182.1689426,103.41,103.32,53.85443044]
[1646211522164,182.1689426,103.41,103.29,38.0188]
[1646211522365,14.5215,103.37,103.29,23.5005]
[1646211522568,14.7715,103.37,103.29,23.5005]
[1646211522770,112.90422523,103.37,103.25,85.9163]
[1646211522966,6.13563356,103.36,103.25,14.5239]
[1646211523166,114.39069143,103.36,103.25,69.01408537]
[1646211523365,26.85638478,103.35,103.25,69.01408537]
[1646211523565,20.5256,103.34,103.25,54.49018537]
[1646211523766,53.02325955,103.34,103.25,54.49018537]
[1646211524564,53.02325955,103.34,103.25,54.74018537]
[1646211525365,28.5396,103.34,103.26,95.76]
[1646211525564,6.25,103.34,103.26,95.76]
[1646211525764,0.25,103.34,103.26,95.76]
[1646211525966,6.25,103.35,103.26,95.76]
[1646211526165,6.25,103.35,103.25,54.74018537]
[1646211526765,6.25,103.35,103.25,54.49018537]
[1646211526965,31.14771812,103.35,103.25,54.49018537]
[1646211527566,52.25914785,103.35,103.25,54.49018537]
[1646211527767,56.13114785,103.35,103.25,54.49018537]
[1646211528868,70.70994785,103.35,103.25,54.49018537]
[1646211529068,166.46994785,103.35,103.25,54.49018537]
[1646211529768,5.0,103.34,103.25,54.49018537]
[1646211529968,20.5269,103.33,103.25,54.49018537]
[1646211530169,20.7769,103.33,103.25,54.49018537]
[1646211530971,120.89755698,103.33,103.25,54.49018537]
[1646211531171,25.13755698,103.33,103.25,54.49018537]
[1646211531370,23.14962523,103.33,103.25,54.49018537]
[1646211531571,20.7769,103.33,103.25,150.25018537]
[1646211531772,6.25,103.33,103.25,150.25018537]
[1646211531970,6.0,103.33,103.25,167.3237254]
[1646211532172,6.0,103.35,103.25,167.5737254]
[1646211532373,52.6131,103.36,103.25,187.0067254]
[1646211532973,5.0,103.36,103.27,95.76]
[1646211533177,14.5202,103.38,103.29,57.84617194]
[1646211533381,14.5202,103.38,103.29,58.09617194]
[1646211533576,6.0,103.37,103.29,153.85617194]
[1646211533975,6.0,103.37,103.29,58.09617194]
[1646211534176,6.0,103.37,103.29,153.85617194]
[1646211534577,6.25,103.37,103.29,153.85617194]
[1646211534779,6.25,103.37,103.29,168.37547194]
[1646211534978,0.25,103.37,103.29,179.91547194]
[1646211535178,6.25,103.38,103.29,179.91547194]
[1646211535782,0.25,103.38,103.29,179.91547194]
[1646211535979,24.6384,103.39,103.29,179.91547194]
[1646211536179,24.6384,103.39,103.29,84.15547194]
[1646211537194,24.6384,103.39,103.3,95.76]
[1646211537395,24.3884,103.39,103.3,14.7677]
[1646211537595,52.2326,103.4,103.3,20.7037]
[1646211537795,48.3626,103.4,103.31,11.54]
[1646211537997,48.3626,103.4,103.31,14.33904003]
[1646211538595,48.3626,103.4,103.31,11.79]
[1646211539096,48.6126,103.4,103.31,11.79]
[1646211539396,48.6126,103.4,103.33,51.99112978]
[1646211539597,48.6126,103.4,103.33,52.24112978]
[1646211540696,63.1299,103.4,103.33,51.99112978]
[1646211541099,6.0,103.39,103.33,51.99112978]
[1646211541296,6.25,103.39,103.33,51.99112978]
[1646211542296,20.7686,103.39,103.33,51.99112978]
[1646211543398,6.0,103.39,103.33,147.75112978]
[1646211543602,48.3626,103.4,103.33,148.00112978]
[1646211543799,1.33304812,103.44,103.33,162.09016981]
[1646211544000,52.03624812,103.46,103.33,168.28616981]
[1646211544200,50.7032,103.46,103.33,168.28616981]
[1646211544400,6.0,103.45,103.33,168.28616981]
[1646211544600,6.0,103.45,103.35,95.76]
[1646211544801,20.5108,103.45,103.36,110.2686]
[1646211545003,20.5108,103.45,103.37,141.76873732]
[1646211545203,6.0,103.45,103.37,46.25873732]
[1646211546105,6.25,103.45,103.37,46.25873732]
[1646211546905,6.25,103.45,103.37,142.01873732]
[1646211547203,20.76,103.45,103.37,46.25873732]
[1646211547805,20.76,103.45,103.37,142.01873732]
[1646211548005,20.76,103.45,103.37,46.25873732]
[1646211548806,14.76,103.45,103.37,46.25873732]
[1646211549407,0.25,103.45,103.37,60.76683732]
[1646211549709,47.0842,103.46,103.37,156.52683732]
[1646211549908,46.8342,103.46,103.37,156.52683732]
[1646211550511,46.8342,103.46,103.37,156.49323686]
[1646211550812,61.3431,103.46,103.37,60.73323686]
[1646211551010,6.0,103.45,103.37,46.22513686]
[1646211551313,6.25,103.45,103.37,46.22513686]
[1646211551711,6.25,103.45,103.37,141.98513686]
[1646211551915,0.25,103.45,103.37,141.98513686]
[1646211552113,47.0842,103.46,103.37,141.98513686]
[1646211552715,49.45692523,103.46,103.37,153.52513686]
[1646211552915,6.0,103.45,103.37,153.52513686]
[1646211553117,6.25,103.45,103.37,168.03333686]
[1646211553518,0.25,103.45,103.37,45.97513686]
[1646211553716,30.00431171,103.45,103.37,45.97513686]
[1646211553919,28.08041235,103.45,103.37,45.97513686]
[1646211554116,51.47062524,103.45,103.37,45.97513686]
[1646211554515,53.13190791,103.45,103.35,22.9653]
[1646211554715,48.13190791,103.45,103.35,22.9653]
[1646211555115,62.64190791,103.45,103.35,22.9653]
[1646211555316,158.40190791,103.45,103.35,22.9653]
[1646211555615,87.82800445,103.45,103.35,22.9653]
[1646211555817,5.0,103.44,103.35,22.9653]
[1646211556016,6.0,103.43,103.34,24.1255]
[1646211556217,6.25,103.43,103.34,24.1255]
[1646211556420,14.5153,103.42,103.33,15.408]
[1646211556717,6.0,103.41,103.34,49.11767519]
[1646211556918,6.25,103.41,103.34,49.11767519]
[1646211557118,0.25,103.41,103.34,49.11767519]
[1646211557318,25.5137,103.43,103.34,49.11767519]
[1646211557518,25.5137,103.43,103.34,49.36767519]
[1646211557720,25.5137,103.43,103.34,60.90767519]
[1646211558221,20.5137,103.43,103.34,60.90767519]
[1646211558422,23.7065,103.44,103.34,171.18007519]
[1646211558622,23.9565,103.44,103.34,173.72911522]
[1646211559027,23.9565,103.44,103.34,177.59711522]
[1646211559423,23.9565,103.44,103.35,3.868]
[1646211559624,0.25,103.44,103.36,76.20763227]
[1646211559826,20.7615,103.44,103.36,61.94853227]
[1646211561725,6.0,103.44,103.36,157.70853227]
[1646211561927,6.0,103.45,103.36,157.70853227]
[1646211562526,6.0,103.45,103.36,174.7668723]
[1646211564052,47.761,103.46,103.36,174.7668723]
[1646211564248,18.3748,103.48,103.36,174.7668723]
[1646211564452,6.0,103.47,103.37,3.867]
[1646211564647,6.0,103.48,103.4,110.2632]
[1646211564851,6.0,103.48,103.41,60.87131435]
[1646211565049,6.0,103.48,103.41,61.12131435]
[1646211565650,6.25,103.48,103.41,61.12131435]
[1646211569156,6.25,103.48,103.41,60.87131435]
[1646211569354,6.25,103.48,103.41,11.54]
[1646211569355,118.27560813,103.48,103.41,11.54]
[1646211569553,22.51560813,103.48,103.37,15.406]
[1646211569856,188.44638118,103.47,103.38,3.867]
[1646211570055,97.7331136,103.45,103.34,3.867]
[1646211570254,6.0,103.44,103.34,3.867]
[1646211570458,43.8976743,103.44,103.35,47.83598529]
[1646211570856,2.37272523,103.43,103.35,47.83598529]
[1646211571055,6.0,103.42,103.35,143.59598529]
[1646211571257,2.37272523,103.45,103.37,95.76]
[1646211571458,6.0,103.44,103.39,45.94728632]
[1646211571759,6.0,103.44,103.39,46.19728632]
[1646211572157,6.0,103.45,103.39,46.19728632]
[1646211572359,6.0,103.45,103.39,57.73728632]
[1646211572758,6.0,103.45,103.39,153.49728632]
[1646211572958,6.0,103.45,103.39,156.04632635]
[1646211573160,33.82404812,103.49,103.39,156.04632635]
[1646211573359,23.624,103.49,103.39,156.04632635]
[1646211573759,53.081,103.5,103.43,95.76]
[1646211573959,49.215,103.5,103.44,48.69193218]
[1646211574159,49.215,103.5,103.44,48.94193218]
[1646211574362,49.215,103.5,103.44,60.48193218]
[1646211574561,49.215,103.5,103.44,60.23193218]
[1646211574763,3.865,103.49,103.44,48.69193218]
[1646211574961,6.0,103.48,103.44,48.69193218]
[1646211575261,6.0,103.49,103.44,48.69193218]
[1646211576064,6.0,103.49,103.44,48.94193218]
[1646211577365,6.0,103.49,103.4,18.3696]
[1646211577563,6.0,103.49,103.41,11.54]
[1646211577765,20.5047,103.49,103.41,11.79]
[1646211577964,22.32048411,103.49,103.41,11.79]
[1646211578163,22.57048411,103.49,103.41,11.79]
[1646211578364,22.57048411,103.49,103.42,49.42983374]
[1646211578562,22.57048411,103.49,103.42,49.67983374]
[1646211579363,20.7547,103.49,103.42,49.67983374]
[1646211579763,20.7547,103.49,103.42,145.18983374]
[1646211579966,6.25,103.49,103.42,156.97983374]
[1646211580265,6.0,103.49,103.42,156.97983374]
[1646211580666,6.0,103.49,103.42,61.21983374]
[1646211580865,49.215,103.5,103.42,61.21983374]
[1646211581064,6.0,103.49,103.42,75.72143374]
[1646211581465,6.25,103.49,103.42,75.72143374]
[1646211582264,6.25,103.49,103.42,61.21983374]
[1646211583064,20.7546,103.49,103.42,61.21983374]
[1646211583765,20.7546,103.49,103.42,11.54]
[1646211583965,20.7546,103.49,103.42,11.79]
[1646211584165,20.7546,103.49,103.42,11.54]
[1646211584569,140.12308974,103.49,103.38,20.92144003]
[1646211584767,44.36308974,103.49,103.39,44.26866741]
[1646211585065,44.36308974,103.49,103.39,55.80866741]
[1646211585664,49.36308974,103.49,103.39,55.80866741]
[1646211585866,20.7546,103.49,103.39,166.32446741]
[1646211587072,6.25,103.49,103.39,168.87350744]
[1646211587268,6.25,103.49,103.42,95.76]
[1646211587568,6.25,103.49,103.43,69.12962743]
[1646211587770,6.25,103.49,103.43,69.37962743]
[1646211587969,0.25,103.49,103.43,69.37962743]
[1646211588170,49.215,103.5,103.43,165.13962743]
[1646211588371,49.215,103.5,103.43,167.68866746]
[1646211588578,15.83284812,103.53,103.43,167.68866746]
[1646211588772,62.95674812,103.53,103.43,167.68866746]
[1646211589171,6.0,103.52,103.43,167.68866746]
[1646211589675,6.0,103.52,103.43,71.92866746]
[1646211589872,43.87611425,103.52,103.43,74.63886746]
[1646211590071,44.12611425,103.52,103.43,57.58962743]
[1646211590274,45.45916237,103.52,103.43,57.58962743]
[1646211590473,45.45916237,103.52,103.43,69.12962743]
[1646211590672,50.45916237,103.52,103.43,69.12962743]
[1646211590871,49.12611425,103.52,103.43,69.12962743]
[1646211591276,27.2957019,103.52,103.43,69.37962743]
[1646211592073,28.62875002,103.52,103.43,69.37962743]
[1646211592277,28.62875002,103.52,103.43,69.12962743]
[1646211592473,142.94705002,103.52,103.43,69.37962743]
[1646211592675,165.52390937,103.52,103.43,69.37962743]
[1646211592873,14.5047,103.49,103.43,69.37962743]
[1646211593075,6.0,103.48,103.43,69.37962743]
[1646211593276,6.25,103.48,103.43,69.37962743]
[1646211593473,6.25,103.48,103.43,11.54]
[1646211593676,6.25,103.48,103.4,3.865]
[1646211593877,28.08041235,103.48,103.4,3.865]
[1646211594478,33.08041235,103.48,103.4,3.865]
[1646211594678,33.08041235,103.48,103.41,43.34644666]
[1646211594879,11.25,103.48,103.41,43.34644666]
[1646211595079,25.756,103.48,103.41,43.34644666]
[1646211595477,25.756,103.48,103.41,43.59644666]
[1646211595678,25.756,103.48,103.41,43.34644666]